bitfinex/quotes_SOLUSD_20250307
["timestamp","ask_amount","ask_price","bid_price","bid_amount"]
[1741307867541,50.0,137.15,137.02,0.03]
[1741307867848,50.0,137.13,136.97,5.4201]
[1741307868024,50.0,137.13,136.95,11.0051]
[1741307868025,50.0,137.11,136.95,11.0051]
[1741307868334,1.26777233,137.12,136.95,11.0051]
[1741307868335,1.26777233,137.1,136.95,11.0051]
[1741307869047,1.26777233,137.1,136.96,0.14216157]
[1741307869345,10.7668,137.16,136.96,0.14216157]
[1741307869519,12.03457233,137.16,136.96,1.67452304]
[1741307869715,1.26777233,137.16,136.98,0.14216157]
[1741307870025,50.0,137.15,136.96,1.53220701]
[1741307870241,50.0,137.15,136.95,11.0051]
[1741307870532,50.0,137.13,136.89,145.11184835]
[1741307870835,0.14216157,137.11,136.9,59.79375503]
[1741307871134,0.14216157,137.09,136.9,1.5329644]
[1741307871313,0.14216157,137.07,136.9,1.53286052]
[1741307871521,0.14216157,137.05,136.9,1.53286052]
[1741307871738,0.14216157,137.1,136.91,0.28432314]
[1741307872055,0.14216157,137.08,136.9,1.53258554]
[1741307872221,0.14216157,137.06,136.89,145.11184835]
[1741307872535,0.14216157,137.04,136.89,145.11184835]
[1741307872709,0.14216157,137.04,136.9,1.53304729]
[1741307872909,1.53267145,137.05,136.91,0.14216157]
[1741307873116,0.14216157,137.07,136.9,1.67508472]
[1741307873311,0.14216157,137.05,136.9,1.675102]
[1741307873729,0.14216157,137.03,136.9,1.53312071]
[1741307873924,0.14216157,137.03,136.89,213.99043898]
[1741307873925,0.14216157,137.03,136.89,155.72964835]
[1741307874239,1.53267145,137.07,136.9,1.53322407]
[1741307874421,1.53267145,137.07,136.93,0.14216157]
[1741307874618,1.53267145,137.07,136.95,0.14216157]
[1741307874823,1.53267145,137.1,136.95,0.14216157]
[1741307875020,1.53267145,137.1,136.91,0.14216157]
[1741307875243,6.70719922,137.11,136.93,0.14216157]
[1741307875435,1.53267145,137.1,136.93,0.14216157]
[1741307875639,1.53267145,137.12,136.94,1.53266103]
[1741307876025,6.70719922,137.11,136.98,312.0]
[1741307876222,1.53267145,137.1,136.89,213.99043898]
[1741307876438,0.14216157,137.09,136.9,1.53277528]
[1741307876637,0.14216157,137.07,136.9,1.53277528]
[1741307876846,0.14216157,137.05,136.9,1.53277528]
[1741307877132,0.14216157,137.07,136.91,58.54511377]
[1741307877332,1.53267145,137.06,136.92,1.53264617]
[1741307877527,0.14216157,137.05,136.9,1.53278893]
[1741307877720,1.53267145,137.04,136.9,1.53291964]
[1741307877929,0.14216157,137.05,136.89,145.11184835]
[1741307878127,0.14216157,137.03,136.89,145.11184835]
[1741307878326,0.14216157,137.01,136.9,0.03]
[1741307878527,1.53267145,137.0,136.9,0.03]
[1741307878730,0.14216157,136.99,136.9,0.03]
[1741307880041,1.53267145,137.03,136.9,0.03]
[1741307880245,13.02297145,137.03,136.9,0.03]
[1741307880548,1.26777233,137.02,136.9,0.03]
[1741307880856,5.7642,137.07,136.9,1.56332532]
[1741307881060,1.53267145,137.07,136.91,0.14216157]
[1741307881349,1.53267145,137.09,136.93,58.4029522]
[1741307881568,8.23987067,137.12,136.91,58.4029522]
[1741307881737,8.23987067,137.12,136.94,0.14216157]
[1741307882056,8.23987067,137.12,136.96,0.28432314]
[1741307882355,14.41752047,137.13,137.03,58.4029522]
[1741307882558,14.41752047,137.13,137.06,58.26079063]
[1741307882737,10.10167271,137.14,137.08,0.14216157]
[1741307883142,50.0,137.1,136.91,10.6537]
[1741307883352,239.84,137.13,136.9,0.03]
[1741307883353,0.14216157,137.06,136.9,0.03]
[1741307883537,0.14216157,137.0,136.9,0.03]
[1741307883870,0.14216157,137.05,136.9,1.56375096]
[1741307884031,1.53267145,137.03,136.9,0.03]
[1741307884233,0.14216157,137.02,136.9,0.03]
[1741307884451,0.14216157,137.0,136.9,0.03]
[1741307884733,0.14216157,136.98,136.9,0.03]
[1741307884933,1.53267145,137.01,136.9,0.03]
[1741307885146,0.14216157,137.0,136.9,0.03]
[1741307885568,0.14216157,136.98,136.9,0.03]
[1741307885754,1.67483302,137.01,136.9,0.03]
[1741307886636,55.41507921,137.08,136.91,0.28432314]
[1741307886849,1.53267145,137.08,136.92,1.53241156]
[1741307887059,1.53267145,137.08,136.9,1.56276718]
[1741307887265,50.14216157,137.05,136.9,0.03]
[1741307887438,0.14216157,137.01,136.9,0.03]
[1741307887638,1.53267145,137.0,136.9,0.03]
[1741307887838,0.14216157,136.99,136.9,0.03]
[1741307888034,54.91507921,137.02,136.88,0.03]
[1741307888035,0.14216157,136.97,136.88,0.03]
[1741307888263,6.72418689,136.98,136.88,0.03]
[1741307888440,1.53267145,137.07,136.88,0.31432314]
[1741307888640,6.72418689,137.04,136.9,0.28432314]
[1741307888839,1.53267145,137.07,136.92,0.28432314]
[1741307889038,1.53267145,137.11,136.94,58.54511377]
[1741307889240,14.45658863,137.12,136.99,58.4029522]
[1741307889458,14.45658863,137.12,137.01,58.54511377]
[1741307889667,14.45658863,137.12,137.05,58.26079063]
[1741307889965,2.65058863,137.12,137.11,58.54511377]
[1741307890160,10.10167271,137.17,137.11,372.0754707]
[1741307890461,10.10167271,137.17,137.12,0.14216157]
[1741307890761,10.10167271,137.17,137.03,0.28432314]
[1741307890963,10.10167271,137.17,137.04,0.14216157]
[1741307890964,11.63434416,137.17,137.04,0.14216157]
[1741307891160,11.63434416,137.17,136.93,23.94]
[1741307891161,0.14216157,137.07,137.01,1.53152946]
[1741307891459,55.41507921,137.02,136.94,0.03]
[1741307891640,0.14216157,137.01,136.94,0.03]
[1741307891845,55.41507921,137.02,136.94,0.03]
[1741307892045,1.53267145,137.01,136.94,0.03]
[1741307892262,0.14216157,137.0,136.87,131.59431721]
[1741307892464,55.41507921,137.02,136.87,131.59431721]
[1741307892465,1.91658184,136.99,136.87,131.59431721]
[1741307892670,1.91666914,137.01,136.87,131.59431721]
[1741307892963,5.4334,137.14,136.89,2.28432314]
[1741307892964,57.33153606,137.08,136.89,2.28432314]
[1741307893163,55.41507921,137.08,136.92,2.0]
[1741307893365,0.033,137.12,136.96,0.28432314]
[1741307893556,0.033,137.12,136.98,0.28432314]
[1741307893756,0.033,137.12,136.97,0.76393496]
[1741307893757,0.033,137.12,137.02,0.28432314]
[1741307893957,0.033,137.12,137.03,0.76342546]
[1741307894265,0.033,137.12,137.04,0.28432314]
[1741307894466,0.033,137.12,137.06,0.28432314]
[1741307894646,0.033,137.12,137.03,0.28432314]
[1741307894849,0.033,137.12,137.05,0.28432314]
[1741307895152,0.033,137.12,137.07,0.28432314]
[1741307895467,0.033,137.12,137.0,0.76180897]
[1741307895775,0.14216157,137.11,136.96,11.6951]
[1741307895947,2.62749719,137.12,136.97,0.76550339]
[1741307896148,0.033,137.12,136.97,2.76550339]
[1741307896373,0.033,137.12,137.01,0.14216157]
[1741307896548,0.033,137.12,137.03,0.28432314]
[1741307896753,0.033,137.12,137.04,0.76224303]
[1741307897074,0.033,137.12,136.92,158.1]
[1741307897075,0.14216157,137.11,136.92,158.1]
[1741307897253,0.14216157,137.07,136.92,158.1]
[1741307897453,0.14216157,137.07,136.83,18.6286]
[1741307897454,2.05819644,137.07,136.83,16.6286]
[1741307897652,3.32596877,137.07,136.85,58.26079063]
[1741307897847,52.05819644,137.07,136.86,0.76702129]
[1741307898048,55.41507921,137.02,136.84,0.7683343]
[1741307898252,0.14216157,137.0,136.84,0.7683343]
[1741307898775,1.91691304,136.99,136.83,0.76863443]
[1741307898951,0.14216157,136.98,136.83,0.76863443]
[1741307899267,0.14216157,136.98,136.84,0.14216157]
[1741307899469,0.14216157,136.98,136.85,0.7682993]
[1741307899664,1.91693063,136.97,136.82,0.76866961]
[1741307899862,0.14216157,136.94,136.81,158.1]
[1741307900172,2.06008964,136.94,136.76,0.03]
[1741307900479,0.14216157,136.89,136.76,0.03]
[1741307900658,2.06056707,136.89,136.76,0.03]
[1741307901071,11.4021,136.83,136.76,0.03]
[1741307901268,0.14216157,136.81,136.62,2.77365763]
[1741307901577,1.91953299,136.81,136.62,0.77365763]
[1741307901760,0.14216157,136.8,136.62,0.77365763]
[1741307902077,0.14216157,136.78,136.62,0.77365763]
[1741307902274,1.92005571,136.77,136.62,0.77365763]
[1741307902490,0.14216157,136.81,136.62,0.77365763]
[1741307902694,1.91957347,136.8,136.62,0.77365763]
[1741307902880,11.4021,136.83,136.65,0.28432314]
[1741307902881,0.14216157,136.81,136.65,0.28432314]
[1741307903067,0.14216157,136.82,136.67,0.14216157]
[1741307903387,11.4021,136.83,136.69,0.28432314]
[1741307903688,0.67984123,136.89,136.76,0.14216157]
[1741307903855,1.91855855,136.89,136.76,0.14216157]
[1741307904062,1.91855855,136.89,136.75,312.0]
[1741307904374,1.91855855,136.89,136.73,158.22]
[1741307904562,0.14216157,136.88,136.73,158.22]
[1741307904760,0.14216157,136.86,136.73,158.22]
[1741307904955,1.91921521,136.85,136.75,0.03]
[1741307905181,1.91864139,136.84,136.75,0.03]
[1741307905382,1.91864139,136.89,136.75,0.03]
[1741307905768,1.91864139,136.89,136.77,0.14216157]
[1741307905969,1.91864139,136.89,136.75,0.03]
[1741307906296,1.91864139,136.89,136.76,0.14216157]
[1741307906497,51.91864139,136.89,136.75,0.03]
[1741307906793,0.14216157,136.83,136.75,0.03]
[1741307906958,1.9189509,136.87,136.75,0.03]
[1741307907376,1.9189509,136.87,136.76,0.14216157]
[1741307907587,1.91848923,136.89,136.76,0.14216157]
[1741307907810,1.91848923,136.89,136.77,0.14216157]
[1741307907970,1.91848923,136.89,136.75,0.17216157]
[1741307908168,1.91848923,136.89,136.75,0.03]
[1741307908496,58.13412079,136.88,136.75,0.03]
[1741307908656,0.14216157,136.86,136.75,0.03]
[1741307908861,8.64345842,136.89,136.75,0.03]
[1741307909292,1.91927153,136.89,136.75,0.03]
[1741307909478,0.14216157,136.88,136.75,0.03]
[1741307909678,0.14216157,136.86,136.75,0.03]
[1741307909879,0.14216157,136.84,136.75,0.03]
[1741307910191,1.91915019,136.83,136.67,0.77242749]
[1741307910686,1.91915019,136.83,136.68,0.28432314]
[1741307910893,1.91915019,136.83,136.71,312.0]
[1741307911389,1.91915019,136.83,136.62,298.12]
[1741307911611,1.91915019,136.83,136.63,0.77373217]
[1741307911920,0.14216157,136.81,136.63,0.77373217]
[1741307912208,0.14216157,136.81,136.64,0.14216157]
[1741307912209,2.0616017,136.81,136.64,0.14216157]
[1741307912396,1.91944013,136.81,136.65,0.77413671]
[1741307912592,5.9699,136.82,136.67,60.54511377]
[1741307912823,5.9699,136.82,136.69,0.28432314]
[1741307913110,5.9699,136.82,136.71,0.14216157]
[1741307913414,5.9699,136.82,136.62,296.12]
[1741307913415,7.88885048,136.82,136.63,0.77270931]
[1741307913615,0.14216157,136.81,136.63,0.77270931]
[1741307913917,0.14216157,136.79,136.63,0.77270931]
[1741307914225,0.14216157,136.77,136.63,0.77270931]
[1741307914512,10.9731,136.77,136.63,0.77270931]
[1741307914717,2.06204801,136.76,136.62,158.32]
[1741307915019,5.9699,136.82,136.66,2.14216157]
[1741307915217,1.91871016,136.81,136.68,0.14216157]
[1741307915399,1.91871016,136.81,136.68,0.91590491]
[1741307915599,0.14216157,136.8,136.67,0.14216157]
[1741307916011,0.14216157,136.78,136.63,0.77360548]
[1741307916192,0.14216157,136.76,136.62,158.32]
[1741307916394,0.14216157,136.74,136.56,0.74404163]
[1741307916582,0.14216157,136.72,136.56,0.74404163]
[1741307916807,1.92113255,136.71,136.63,0.03]
[1741307917108,1.92078331,136.74,136.63,0.03]
[1741307917404,55.41507921,136.77,136.64,0.14216157]
[1741307917604,57.33499852,136.77,136.64,312.14216157]
[1741307917809,11.4487,136.8,136.65,0.77470463]
[1741307918009,55.41507921,136.77,136.63,0.03]
[1741307918200,1.92035567,136.76,136.57,0.77551967]
[1741307918509,55.41507921,136.74,136.56,0.74404163]
[1741307918685,2.06313395,136.73,136.56,0.74404163]
[1741307918885,55.41507921,136.74,136.57,0.77675309]
[1741307919128,0.14216157,136.72,136.58,0.14216157]
[1741307919419,11.4487,136.8,136.62,58.54511377]
[1741307919731,5.9699,136.82,136.68,0.14216157]
[1741307920020,5.9699,136.82,136.7,0.14216157]
[1741307920195,0.033,136.84,136.72,0.28432314]
[1741307920397,0.033,136.84,136.74,0.14216157]
[1741307920598,0.033,136.84,136.76,0.28432314]
[1741307920815,0.033,136.84,136.71,0.14216157]
[1741307921014,0.033,136.84,136.76,312.0]
[1741307921216,0.033,136.84,136.71,0.14216157]
[1741307921217,0.033,136.84,136.66,0.14216157]
[1741307921420,55.41507921,136.8,136.65,0.77351778]
[1741307921620,5.4306,136.78,136.62,0.77444201]
[1741307921811,55.41507921,136.74,136.61,158.42]
[1741307922017,0.14216157,136.72,136.61,158.42]
[1741307922323,55.41507921,136.74,136.62,0.77625777]
[1741307922624,11.435,136.76,136.62,0.77625777]
[1741307922625,5.5574,136.86,136.68,58.26079063]
[1741307922798,5.5574,136.86,136.7,0.14216157]
[1741307922995,5.5574,136.86,136.72,0.28432314]
[1741307923219,5.5574,136.86,136.74,0.14216157]
[1741307923400,5.5574,136.86,136.76,0.14216157]
[1741307923604,5.5574,136.86,136.77,0.77103325]
[1741307923823,5.5574,136.86,136.78,0.28432314]
[1741307924014,5.5574,136.86,136.79,0.14216157]
[1741307924213,5.5574,136.86,136.79,312.14216157]
[1741307924417,5.5574,136.86,136.74,0.28432314]
[1741307924622,5.5574,136.86,136.75,0.77135518]
[1741307924819,5.5574,136.86,136.75,0.14216157]
[1741307925008,0.14216157,136.83,136.63,296.41324235]
[1741307925202,2.06156881,136.83,136.64,0.77362282]
[1741307925522,0.14216157,136.83,136.64,0.77362282]
[1741307925725,0.033,136.84,136.65,2.0]
[1741307925899,0.17516157,136.84,136.66,61.03306495]
[1741307926104,0.033,136.84,136.67,2.0]
[1741307926320,0.033,136.84,136.69,0.28432314]
[1741307926642,1.95169814,136.84,136.68,0.77220462]
[1741307926920,1.95169814,136.84,136.71,0.14216157]
[1741307926921,0.033,136.84,136.71,0.14216157]
[1741307927126,0.14216157,136.83,136.66,0.7722955]
[1741307927428,2.06133243,136.83,136.66,312.0]
[1741307927626,0.14216157,136.83,136.67,0.77353419]
[1741307927831,11.61816157,136.77,136.63,158.4]
[1741307928032,1.91998637,136.76,136.64,0.14216157]
[1741307928242,1.91998637,136.76,136.63,158.4]
[1741307928413,11.476,136.77,136.64,0.77489353]
[1741307928609,11.476,136.83,136.64,2.77489353]
[1741307928811,11.476,136.83,136.65,0.28432314]
[1741307929032,11.476,136.83,136.67,0.28432314]
[1741307929341,11.476,136.83,136.69,0.28432314]
[1741307929515,11.476,136.83,136.7,0.28432314]
[1741307929719,11.476,136.83,136.68,0.77234957]
[1741307929923,11.476,136.83,136.69,0.9150448]
[1741307930127,11.476,136.83,136.7,0.14216157]
[1741307930357,0.14216157,136.82,136.66,0.77274605]
[1741307930541,0.14216157,136.82,136.64,0.77426753]
[1741307930711,0.14216157,136.82,136.64,312.0]
[1741307930910,18.20018689,136.83,136.64,312.0]
[1741307931125,0.14216157,136.82,136.64,312.0]
[1741307931322,0.14216157,136.82,136.63,158.43]
[1741307931536,0.14216157,136.82,136.64,0.7733832]
[1741307931823,0.14216157,136.82,136.65,0.28432314]
[1741307932029,0.14216157,136.82,136.66,0.77321682]
[1741307932820,0.14216157,136.82,136.63,158.43]
[1741307932821,0.14216157,136.82,136.64,0.77404316]
[1741307933026,2.06158799,136.82,136.67,0.77404316]
[1741307933223,11.476,136.83,136.68,0.28432314]
[1741307933431,11.476,136.83,136.68,1.05744234]
[1741307933735,11.476,136.83,136.65,0.14216157]
[1741307933931,11.476,136.83,136.65,0.77383424]
[1741307934244,55.41507921,136.78,136.63,158.43]
[1741307934413,5.667,136.76,136.63,158.43]
[1741307934743,5.667,136.76,136.64,0.77484982]
[1741307934915,5.667,136.76,136.65,0.28432314]
[1741307935116,5.667,136.76,136.67,0.14216157]
[1741307935434,5.667,136.76,136.64,0.7742105]
[1741307935636,5.667,136.76,136.68,0.14216157]
[1741307936023,5.667,136.76,136.7,0.14216157]
[1741307936222,5.667,136.76,136.64,2.28432314]
[1741307936429,11.476,136.83,136.68,0.28432314]
[1741307936740,11.476,136.83,136.7,0.28432314]
[1741307937249,11.476,136.83,136.74,312.0]
[1741307937408,11.476,136.83,136.66,0.14216157]
[1741307937616,11.476,136.83,136.68,0.28432314]
[1741307937869,11.476,136.83,136.7,0.28432314]
[1741307938335,5.4947,136.84,136.72,0.28432314]
[1741307938535,5.4947,136.84,136.74,0.28432314]
[1741307938722,5.4947,136.84,136.76,0.28432314]
[1741307938921,0.033,136.84,136.78,0.28432314]
[1741307939233,0.033,136.84,136.8,0.28432314]
[1741307939421,0.033,136.84,136.82,0.28432314]
[1741307939741,0.033,136.84,136.83,0.91135352]
[1741307939913,0.033,136.84,136.83,0.14216157]
[1741307940115,0.033,136.84,136.79,0.14216157]
[1741307940314,0.033,136.84,136.8,0.14216157]
[1741307940520,0.033,136.84,136.75,158.44]
[1741307940833,0.033,136.84,136.79,2.14216157]
[1741307941018,11.1973,136.96,136.82,0.14216157]
[1741307941224,11.1973,136.96,136.84,0.14216157]
[1741307941537,1.91659971,136.95,136.84,0.14216157]
[1741307941750,11.1973,136.96,136.84,0.28432314]
[1741307941949,11.1973,136.96,136.86,2.28432314]
[1741307942120,0.033,136.97,136.88,0.14216157]
[1741307942325,0.033,136.97,136.9,0.14216157]
[1741307942527,0.033,136.97,136.92,0.28432314]
[1741307942727,0.033,136.97,136.94,0.28432314]
[1741307943031,0.033,136.97,136.93,0.7656462]
[1741307943232,0.033,136.97,136.88,0.14216157]
[1741307943434,0.033,136.97,136.83,0.14216157]
[1741307943631,0.033,136.97,136.87,0.28432314]
[1741307943831,0.033,136.97,136.89,0.28432314]
[1741307944038,0.033,136.97,136.9,0.76697429]
[1741307944225,5.87616157,136.96,136.8,0.76839443]
[1741307944425,5.734,136.96,136.8,0.76839443]
[1741307944721,5.734,136.96,136.84,0.28432314]
[1741307944926,0.033,136.97,136.86,0.28432314]
[1741307945145,0.14216157,136.96,136.78,158.4]
[1741307945329,0.14216157,136.95,136.79,0.76996236]
[1741307945633,17.6404,136.93,136.78,158.4]
[1741307945835,17.6404,136.93,136.79,0.77076585]
[1741307946169,17.6404,136.93,136.8,0.28432314]
[1741307946330,17.6404,136.93,136.81,0.76968971]
[1741307946530,0.14216157,136.92,136.81,0.76968971]
[1741307946826,4.059461,136.92,136.72,0.76940721]
[1741307947027,2.14216157,136.88,136.69,312.0]
[1741307947247,55.55724078,136.83,136.63,0.03]
[1741307947451,0.14216157,136.81,136.63,0.03]
[1741307947653,6.07576157,136.79,136.63,0.03]
[1741307947832,5.9336,136.79,136.63,0.03]
[1741307948038,5.9336,136.79,136.63,59.06451936]
[1741307948224,5.9336,136.79,136.63,0.80372873]
[1741307948428,11.0794,136.77,136.63,0.80372873]
[1741307948630,11.0794,136.77,136.63,0.03]
[1741307948834,11.0794,136.77,136.64,0.14216157]
[1741307949083,11.0794,136.77,136.66,0.14216157]
[1741307949251,5.9336,136.79,136.68,0.28432314]
[1741307949436,10.8308,136.84,136.7,0.28432314]
[1741307949639,10.8308,136.84,136.72,0.28432314]
[1741307949969,10.8308,136.84,136.74,0.28432314]
[1741307950134,10.8308,136.84,136.76,0.14216157]
[1741307950455,5.6173,136.86,136.78,0.28432314]
[1741307950639,10.10167271,136.87,136.8,0.28432314]
[1741307950955,10.10167271,136.87,136.77,0.76980596]
[1741307951261,10.10167271,136.87,136.81,58.54511377]
[1741307951433,10.10167271,136.87,136.83,0.28432314]
[1741307951757,10.10167271,136.87,136.75,0.14216157]
[1741307951959,10.10167271,136.87,136.76,0.7706685]
[1741307952348,10.10167271,136.87,136.77,0.28432314]
[1741307952549,10.10167271,136.87,136.78,0.77000552]
[1741307952733,5.9521,136.93,136.79,0.28432314]
[1741307952930,5.9521,136.93,136.81,0.28432314]
[1741307953144,5.9521,136.93,136.83,0.28432314]
[1741307953344,5.9521,136.93,136.83,0.14216157]
[1741307953555,5.9521,136.93,136.85,0.14216157]
[1741307953753,5.9521,136.93,136.87,0.14216157]
[1741307954059,10.13467271,136.97,136.86,312.0]
[1741307954060,0.033,136.95,136.89,0.28432314]
[1741307954260,0.033,136.95,136.88,0.76711441]
[1741307954460,0.033,136.95,136.89,0.28432314]
[1741307954756,0.033,136.95,136.9,0.76690995]
[1741307954947,0.033,136.95,136.87,0.28432314]
[1741307955139,0.033,136.95,136.88,0.7675542]
[1741307955459,0.033,136.95,136.83,0.14216157]
[1741307955660,0.033,136.95,136.85,0.28432314]
[1741307955955,0.033,136.95,136.9,0.28432314]
[1741307956149,0.033,136.95,136.92,2.28432314]
[1741307956454,0.033,136.95,136.94,0.28432314]
[1741307957065,0.033,136.98,136.96,22.28432314]
[1741307957286,10.10167271,137.07,136.96,22.28432314]
[1741307957287,2.927851,137.06,137.0,0.28432314]
[1741307957569,10.10167271,137.07,137.04,0.28432314]
[1741307957747,10.10167271,137.07,137.06,0.28432314]
[1741307957953,10.10167271,137.07,137.06,0.14216157]
[1741307958174,10.10167271,137.07,137.05,158.3]
[1741307958465,10.10167271,137.07,137.06,0.14216157]
[1741307958663,10.10167271,137.07,136.97,0.14216157]
[1741307958861,10.10167271,137.07,136.99,0.14216157]
[1741307959164,10.10167271,137.07,137.01,0.28432314]
[1741307959371,10.10167271,137.07,137.03,0.14216157]
[1741307959543,10.10167271,137.07,137.05,0.28432314]
[1741307959744,0.033,137.08,137.07,0.28432314]
[1741307960052,0.033,137.08,137.07,198.34511377]
[1741307960409,0.033,137.08,137.07,140.08432314]
[1741307960670,0.033,137.09,137.07,508.34511377]
[1741307960843,0.033,137.12,137.11,0.14216157]
[1741307961045,0.033,137.12,137.11,138.84421512]
[1741307961264,0.033,137.12,137.11,0.28432314]
[1741307961472,0.033,137.12,137.11,0.14216157]
[1741307961846,0.033,137.12,137.11,1.04567981]
[1741307962046,0.033,137.12,137.11,0.90351824]
[1741307962352,0.033,137.12,137.08,158.22]
[1741307963151,0.033,137.12,136.98,296.15324235]
[1741307963354,0.033,137.12,137.0,58.26079063]
[1741307963655,0.033,137.12,137.02,0.28432314]
[1741307963862,0.033,137.12,137.03,0.76243877]
[1741307964250,0.033,137.12,137.03,450.56243877]
[1741307964572,0.033,137.12,137.04,0.28432314]
[1741307964754,0.033,137.12,137.06,58.54511377]
[1741307964960,0.033,137.12,137.1,0.28432314]
[1741307965164,0.033,137.12,137.11,159.18426087]
[1741307965375,0.033,137.12,137.11,354.48511377]
[1741307965670,0.033,137.22,137.12,0.28432314]
[1741307965871,0.033,137.22,137.14,0.28432314]
[1741307966047,0.033,137.22,137.16,0.28432314]
[1741307966249,0.033,137.22,137.18,0.28432314]
[1741307966450,0.033,137.22,137.2,0.28432314]
[1741307966666,0.033,137.22,137.21,1.04225235]
[1741307966863,0.033,137.22,137.21,197.10304298]
[1741307967171,0.033,137.22,137.21,196.34511377]
[1741307967370,0.033,137.22,137.21,138.08432314]
[1741307967546,0.033,137.22,137.21,0.28432314]
[1741307967749,0.033,137.22,137.21,312.14216157]
[1741307967946,0.033,137.22,137.11,354.20079063]
[1741307968174,0.033,137.22,137.12,0.75966786]
[1741307968358,0.033,137.22,137.15,58.4029522]
[1741307968556,0.033,137.22,137.17,58.4029522]
[1741307968751,0.033,137.22,137.19,0.14216157]
[1741307969065,0.033,137.22,137.21,0.28432314]
[1741307969447,0.033,137.22,137.21,0.14216157]
[1741307969648,0.033,137.22,137.21,138.08432314]
[1741307969848,0.033,137.22,137.21,0.14216157]
[1741307970252,0.033,137.22,137.21,1.04250847]
[1741307970458,0.033,137.22,137.21,138.84250847]
[1741307970664,0.033,137.22,137.21,60.54511377]
[1741307970968,0.033,137.32,137.22,0.14216157]
[1741307971155,0.033,137.32,137.24,0.14216157]
[1741307971365,0.033,137.32,137.26,0.28432314]
[1741307971571,0.033,137.32,137.28,0.14216157]
[1741307971753,0.033,137.32,137.29,0.75679173]
[1741307971949,0.033,137.32,137.3,0.14216157]
[1741307972578,0.033,137.32,137.25,0.28432314]
[1741307972755,0.033,137.32,137.27,0.28432314]
[1741307973089,0.033,137.32,137.29,0.28432314]
[1741307973375,0.033,137.32,137.31,0.28432314]
[1741307973559,11.8123,137.44,137.31,0.28432314]
[1741307973872,23.2361729,137.43,137.26,137.8]
[1741307974082,13.72261851,137.44,137.27,0.75599798]
[1741307974490,11.8123,137.44,137.32,0.14216157]
[1741307974655,11.8123,137.44,137.34,0.14216157]
[1741307975473,11.8123,137.44,137.35,0.75483402]
[1741307975680,14.732125,137.44,137.36,0.14216157]
[1741307975863,11.8123,137.44,137.36,0.14216157]
[1741307976065,11.8123,137.44,137.36,0.89663693]
[1741307976258,11.8123,137.44,137.33,0.14216157]
[1741307976467,11.8123,137.44,137.35,0.14216157]
[1741307976851,11.8123,137.44,137.32,0.75539904]
[1741307977053,11.8123,137.44,137.33,0.28432314]
[1741307977261,11.8123,137.44,137.35,0.14216157]
[1741307977467,11.8123,137.44,137.33,157.8]
[1741307977659,1.91023621,137.43,137.33,157.8]
[1741307977855,4.83029621,137.43,137.33,157.8]
[1741307978258,80.63187532,137.39,137.22,157.8]
[1741307978478,2.05362674,137.38,137.22,157.8]
[1741307978656,8.77781363,137.38,137.22,157.8]
[1741307978862,8.77781363,137.38,137.23,0.14216157]
[1741307979074,8.77781363,137.38,137.22,157.8]
[1741307979274,2.05362674,137.38,137.22,157.8]
[1741307979475,0.14216157,137.36,137.22,157.8]
[1741307979781,11.7622,137.33,137.25,0.03]
[1741307980001,2.05458671,137.32,137.13,157.8]
[1741307980297,0.14216157,137.3,137.13,157.8]
[1741307980461,0.14216157,137.29,137.13,157.8]
[1741307980663,80.77403689,137.27,137.13,157.8]
[1741307980980,0.14216157,137.25,137.13,157.8]
[1741307981184,11.7622,137.23,137.09,312.0]
[1741307981374,80.63187532,137.21,137.02,157.82]
[1741307981578,2.0,137.19,137.02,157.82]
[1741307981765,1.91465962,137.18,137.03,0.76412757]
[1741307982274,5.5194,137.2,137.03,0.76412757]
[1741307982275,1.91392888,137.17,137.03,0.76412757]
[1741307982663,1.91392888,137.17,137.02,157.82]
[1741307983179,2.0,137.16,137.02,157.82]
[1741307983365,5.5194,137.2,137.02,157.82]
[1741307983366,84.54686241,137.15,137.02,157.82]
[1741307983571,80.63187532,137.09,136.94,0.03]
[1741307983874,1.91568315,137.08,136.94,0.03]
[1741307984081,0.14216157,137.07,136.94,0.03]
[1741307984258,80.63187532,137.09,136.94,312.79625836]